Workbook

Sheet Dashboard
A1: Sent this month: | D1: 1832 | F1: Left process at stage 1: | J1: 1286 | L1: Left process at stage 2: | P1: 82 | R1: Exited process: | V1: 429 | X1: Settled: | AA1: 208
A3: Δ from last month: | D3: -742 | F3: Δ from last month: | J3: -233 | L3: Δ from last month: | P3: 9 | R3: Δ from last month: | V3: -119 | X3: Δ from last month: | AA3: -64
A5: Rolling 12 months: | D5: 34023 | F5: Rolling 12 months: | J5: 19810 | L5: Rolling 12 months: | P5: 988 | R5: Rolling 12 months: | V5: 6315 | X5: Rolling 12 months: | AA5: 3060
A7: Left Process Breakdowns - Stage 1:
A9: Reason | H9: This Month | J9: Last Month | L9: Δ
A10: Liability Decision Timeout | H10: 1034 | J10: 1227 | L10: -193
A11: Other | H11: 251 | J11: 287 | L11: -36
A12: Total | H12: 1285 | J12: 1514 | L12: -229
A13: Left Process Breakdowns - Stage 2:
A15: Reason | H15: This Month | J15: Last Month | L15: Δ
A16: Interim payment more than £1,000 not agreed: | H16: 1 | J16: 0 | L16: 1
A17: Settlement pack repudiated: | H17: 2 | J17: 0 | L17: 2
A18: Settlement pack timeout: | H18: 28 | J18: 21 | L18: 7
A19: No agreement; Court Proceedings pack: | H19: 51 | J19: 52 | L19: -1
A20: Total | H20: 82 | J20: 73 | L20: 9

Sheet Backing Sheet Data
A1: Reporting date | B1: 2024-12-01
A2: Previous month | B2: 2024-11-01
A4: Rolling 12 CNFs sent | D4: Average General Damages chart data | H4: Left Process Breakdown
A6: Period | B6: Rolling 12 Sent | D6: Row Labels | E6: Ave General Damages | H6: This Month LDT | I6: This Month Other Liability | J6: This Month Interim Payment Not Agreed | K6: This Month Repudiated | L6: This Month Timeout | M6: This Month Court Proceedings
A7: 2024-01-01 | B7: 38089 | D7: 2024-01-01 | E7: 5719.211739 | H7: 1034 | I7: 251 | J7: 1 | K7: 2 | L7: 28 | M7: 51
A8: 2024-02-01 | B8: 37848 | D8: 2024-02-01 | E8: 5574.140375
A9: 2024-03-01 | B9: 37220 | D9: 2024-03-01 | E9: 6120.210377 | H9: CNF Sent Monthly Volumes Chart Data
A10: 2024-04-01 | B10: 37468 | D10: 2024-04-01 | E10: 5887.266546
A11: 2024-05-01 | B11: 36982 | D11: 2024-05-01 | E11: 6260.844549 | H11: Sum of ClaimCount | I11: Column Labels
A12: 2024-06-01 | B12: 36178 | D12: 2024-06-01 | E12: 6529.575791 | H12: Row Labels | I12: RTA | J12: PL | K12: ELD | L12: EL | M12: Grand Total
A13: 2024-07-01 | B13: 35842 | D13: 2024-07-01 | E13: 6772.555543 | H13: 2024-01-01 | I13: 7523 | J13: 3163 | K13: 451 | L13: 2497 | M13: 13634
A14: 2024-08-01 | B14: 35217 | D14: 2024-08-01 | E14: 6246.916355 | H14: 2024-02-01 | I14: 7263 | J14: 3056 | K14: 438 | L14: 2272 | M14: 13029
A15: 2024-09-01 | B15: 35113 | D15: 2024-09-01 | E15: 6373.169285 | H15: 2024-03-01 | I15: 6804 | J15: 2939 | K15: 570 | L15: 2290 | M15: 12603
A16: 2024-10-01 | B16: 34946 | D16: 2024-10-01 | E16: 6704.625992 | H16: 2024-04-01 | I16: 7633 | J16: 2983 | K16: 503 | L16: 2284 | M16: 13403
A17: 2024-11-01 | B17: 34450 | D17: 2024-11-01 | E17: 6611.70321 | H17: 2024-05-01 | I17: 7112 | J17: 2690 | K17: 326 | L17: 2007 | M17: 12135
A18: 2024-12-01 | B18: 34023 | D18: 2024-12-01 | E18: 6586.102403 | H18: 2024-06-01 | I18: 6946 | J18: 2647 | K18: 296 | L18: 1935 | M18: 11824
D19: Grand Total | E19: 75386.32216 | H19: 2024-07-01 | I19: 8157 | J19: 3025 | K19: 264 | L19: 2249 | M19: 13695
H20: 2024-08-01 | I20: 7125 | J20: 2816 | K20: 232 | L20: 2021 | M20: 12194
H21: 2024-09-01 | I21: 7359 | J21: 2995 | K21: 490 | L21: 1973 | M21: 12817
B22: 18248 | D22: CNF Sent Monthly Volumes | H22: 2024-10-01 | I22: 8239 | J22: 3152 | K22: 302 | L22: 2122 | M22: 13815
A23: Exit Process Reason | B23: Total | H23: 2024-11-01 | I23: 6974 | J23: 2725 | K23: 155 | L23: 1879 | M23: 11733
A24: Interim Payment request not answered and/or paid on time | B24: 75 | D24: DatePeriod | E24: ClaimType | F24: ClaimCount | H24: 2024-12-01 | I24: 5969 | J24: 1832 | K24: 102 | L24: 1397 | M24: 9300
A25: Failure to acknowledge CNF on time | B25: 68 | D25: 2024-09-01 | E25: EL | F25: 1973 | H25: Grand Total | I25: 87104 | J25: 34023 | K25: 4129 | L25: 24926 | M25: 150182
A26: Incomplete information provided on CNF | B26: 1423 | D26: 2024-02-01 | E26: EL | F26: 2272
A27: Stage 1 costs not paid on time | B27: 149 | D27: 2024-04-01 | E27: EL | F27: 2284
A28: Value of claim exceeds the upper limit | B28: 335 | D28: 2024-10-01 | E28: EL | F28: 2122
A29: Claim is too complex for process | B29: 76 | D29: 2023-10-01 | E29: EL | F29: 1698
A30: Withdrawl of claim | B30: 92 | D30: 2023-11-01 | E30: EL | F30: 2525
A31: Claim requires further investigation | B31: 8395 | D31: 2024-06-01 | E31: EL | F31: 1935
A32: Interim Payment partial offer not accepted | B32: 5 | D32: 2024-01-01 | E32: EL | F32: 2497
A33: Value of claim below £1,000 | B33: 29 | D33: 2024-07-01 | E33: EL | F33: 2249
A34: Interim payment for child claimant | B34: 2 | D34: 2024-03-01 | E34: EL | F34: 2290
A35: Duplicated claim | B35: 647 | D35: 2024-08-01 | E35: EL | F35: 2021
A36: Failure to provide adequate loss of earnings details | B36: 4 | D36: 2024-12-01 | E36: EL | F36: 1397
A37: Other | B37: 6920 | D37: 2024-11-01 | E37: EL | F37: 1879
A38: Withdrawal of offer | B38: 28 | D38: 2023-12-01 | E38: EL | F38: 1618
D39: 2024-05-01 | E39: EL | F39: 2007
D40: 2024-08-01 | E40: ELD | F40: 232
D41: 2024-12-01 | E41: ELD | F41: 102
D42: 2024-01-01 | E42: ELD | F42: 451
D43: 2024-03-01 | E43: ELD | F43: 570
D44: 2024-10-01 | E44: ELD | F44: 302
D45: 2023-11-01 | E45: ELD | F45: 468
D46: 2024-07-01 | E46: ELD | F46: 264
D47: 2024-05-01 | E47: ELD | F47: 326
D48: 2024-04-01 | E48: ELD | F48: 503
D49: 2023-10-01 | E49: ELD | F49: 286
D50: 2024-06-01 | E50: ELD | F50: 296
D51: 2024-02-01 | E51: ELD | F51: 438
D52: 2023-12-01 | E52: ELD | F52: 211
D53: 2024-09-01 | E53: ELD | F53: 490
D54: 2024-11-01 | E54: ELD | F54: 155
D55: 2023-10-01 | E55: PL | F55: 2202
D56: 2023-11-01 | E56: PL | F56: 3235
D57: 2024-11-01 | E57: PL | F57: 2725
D58: 2024-03-01 | E58: PL | F58: 2939
D59: 2024-05-01 | E59: PL | F59: 2690
D60: 2024-01-01 | E60: PL | F60: 3163
D61: 2024-08-01 | E61: PL | F61: 2816
D62: 2024-12-01 | E62: PL | F62: 1832
D63: 2024-09-01 | E63: PL | F63: 2995
D64: 2024-02-01 | E64: PL | F64: 3056
D65: 2024-06-01 | E65: PL | F65: 2647
D66: 2024-04-01 | E66: PL | F66: 2983
D67: 2024-10-01 | E67: PL | F67: 3152
D68: 2024-07-01 | E68: PL | F68: 3025
D69: 2023-12-01 | E69: PL | F69: 2259
D70: 2024-06-01 | E70: RTA | F70: 6946
D71: 2023-12-01 | E71: RTA | F71: 5702
D72: 2024-03-01 | E72: RTA | F72: 6804
D73: 2024-09-01 | E73: RTA | F73: 7359
D74: 2023-10-01 | E74: RTA | F74: 5421
D75: 2024-10-01 | E75: RTA | F75: 8239
D76: 2024-01-01 | E76: RTA | F76: 7523
D77: 2023-11-01 | E77: RTA | F77: 7718
D78: 2024-04-01 | E78: RTA | F78: 7633
D79: 2024-05-01 | E79: RTA | F79: 7112
D80: 2024-12-01 | E80: RTA | F80: 5969
D81: 2024-11-01 | E81: RTA | F81: 6974
D82: 2024-08-01 | E82: RTA | F82: 7125
D83: 2024-02-01 | E83: RTA | F83: 7263
D84: 2024-07-01 | E84: RTA | F84: 8157

Sheet vPLDashboard (hidden)
B1: =SUBTOTAL(9,vPLDashboard[CNFs Sent]) -> 162931 | C1: =SUBTOTAL(9,vPLDashboard[CNFs left at Stage 1]) -> 85772 | D1: =SUBTOTAL(9,vPLDashboard[Stage 2 Exit]) -> 1811 | E1: =SUBTOTAL(9,vPLDashboard[Exit process]) -> 28221 | F1: =SUBTOTAL(9,vPLDashboard[Court Pack]) -> 2509 | G1: =SUBTOTAL(9,vPLDashboard[Settled claims]) -> 12469 | H1: =SUBTOTAL(9,vPLDashboard[General Damages]) -> 372213.1376 | R1: * Oct 22 to Aug 24 fully refreshed - 18/09/2024
A2: Period | B2: CNFs Sent | C2: CNFs left at Stage 1 | D2: Stage 2 Exit | E2: Exit process | F2: Court Pack | G2: Settled claims | H2: General Damages | J2: Period | K2: Rolling 12 CNF Sent | L2: Rolling 12 CNF Left at Stage 1 | M2: Rolling 12 Stage 2 Exit | N2: Rolling 12 Exit Process | O2: Rolling 12 Court Pack | P2: Rolling 12 Settled Claims | R2: Period | S2: CNFs Sent | T2: CNFs left at Stage 1 | U2: Stage 2 Exit | V2: Exit process | W2: Court Pack | X2: Settled claims | Y2: General Damages
A3: 2019-01-01 | B3: 437 | C3: 0 | D3: 0 | E3: 0 | F3: 0 | G3: 1 | H3: 3000 | J3: =vPLDashboard[[#This Row],[Period]] -> 2019-01-01 | R3: 2019-01-01 | S3: 4652 | T3: 3001 | U3: 60 | V3: 818 | W3: 82 | X3: 538 | Y3: 4257.279107
A4: 2019-02-01 | B4: 429 | C4: 0 | D4: 0 | E4: 0 | F4: 0 | G4: 1 | H4: 2500 | J4: =vPLDashboard[[#This Row],[Period]] -> 2019-02-01 | R4: 2019-02-01 | S4: 4582 | T4: 2096 | U4: 55 | V4: 615 | W4: 66 | X4: 546 | Y4: 3956.258205
A5: 2019-03-01 | B5: 482 | C5: 0 | D5: 0 | E5: 0 | F5: 0 | G5: 4 | H5: 3459.4 | J5: =vPLDashboard[[#This Row],[Period]] -> 2019-03-01 | R5: 2019-03-01 | S5: 4831 | T5: 2831 | U5: 45 | V5: 773 | W5: 82 | X5: 643 | Y5: 4356.284447
A6: 2019-04-01 | B6: 469 | C6: 0 | D6: 0 | E6: 0 | F6: 0 | G6: 2 | H6: 1550 | J6: =vPLDashboard[[#This Row],[Period]] -> 2019-04-01 | R6: 2019-04-01 | S6: 4401 | T6: 2782 | U6: 50 | V6: 729 | W6: 69 | X6: 514 | Y6: 4257.751381
A7: 2019-06-01 | B7: 447 | C7: 0 | D7: 0 | E7: 0 | F7: 0 | G7: 2 | H7: 3650 | J7: =vPLDashboard[[#This Row],[Period]] -> 2019-06-01 | R7: 2019-05-01 | S7: 4374 | T7: 2882 | U7: 45 | V7: 850 | W7: 72 | X7: 545 | Y7: 4283.996495
A8: 2019-08-01 | B8: 1227 | C8: 0 | D8: 0 | E8: 0 | F8: 0 | G8: 2 | H8: 3950 | J8: =vPLDashboard[[#This Row],[Period]] -> 2019-08-01 | R8: 2019-06-01 | S8: 4188 | T8: 2614 | U8: 61 | V8: 729 | W8: 79 | X8: 476 | Y8: 4252.704495
A9: 2019-09-01 | B9: 1472 | C9: 15 | D9: 0 | E9: 6 | F9: 2 | G9: 5 | H9: 3448.992 | J9: =vPLDashboard[[#This Row],[Period]] -> 2019-09-01 | R9: 2019-07-01 | S9: 5078 | T9: 2851 | U9: 52 | V9: 889 | W9: 78 | X9: 569 | Y9: 4552.951089
A10: 2019-10-01 | B10: 1807 | C10: 833 | D10: 21 | E10: 269 | F10: 31 | G10: 70 | H10: 4535.602 | J10: =vPLDashboard[[#This Row],[Period]] -> 2019-10-01 | R10: 2019-08-01 | S10: 4784 | T10: 2607 | U10: 44 | V10: 780 | W10: 82 | X10: 472 | Y10: 4406.403432
A11: 2019-11-01 | B11: 1737 | C11: 784 | D11: 16 | E11: 256 | F11: 26 | G11: 49 | H11: 4310.368979 | J11: =vPLDashboard[[#This Row],[Period]] -> 2019-11-01 | R11: 2019-09-01 | S11: 4514 | T11: 2850 | U11: 45 | V11: 791 | W11: 59 | X11: 480 | Y11: 4234.286937
A12: 2019-12-01 | B12: 1244 | C12: 790 | D12: 13 | E12: 258 | F12: 19 | G12: 56 | H12: 4710.399821 | J12: =vPLDashboard[[#This Row],[Period]] -> 2019-12-01 | R12: 2019-10-01 | S12: 4860 | T12: 2554 | U12: 67 | V12: 851 | W12: 89 | X12: 550 | Y12: 4512.531945
A13: 2020-01-01 | B13: 1799 | C13: 841 | D13: 17 | E13: 287 | F13: 16 | G13: 61 | H13: 5458.238852 | J13: =vPLDashboard[[#This Row],[Period]] -> 2020-01-01 | R13: 2019-11-01 | S13: 4516 | T13: 2210 | U13: 40 | V13: 806 | W13: 77 | X13: 511 | Y13: 4165.443933
A14: 2020-02-01 | B14: 1724 | C14: 618 | D14: 16 | E14: 252 | F14: 28 | G14: 66 | H14: 5486.105606 | J14: =vPLDashboard[[#This Row],[Period]] -> 2020-02-01 | K14: =SUM(B3:B14) -> 13274 | L14: =SUM(C3:C14) -> 3881 | M14: =SUM(D3:D14) -> 83 | N14: 1328 | O14: 122 | P14: 319 | R14: 2019-12-01 | S14: 3415 | T14: 2110 | U14: 43 | V14: 724 | W14: 58 | X14: 430 | Y14: 4213.024046
A15: 2020-03-01 | B15: 1598 | C15: 887 | D15: 27 | E15: 348 | F15: 29 | G15: 72 | H15: 4699.629305 | J15: =vPLDashboard[[#This Row],[Period]] -> 2020-03-01 | K15: =SUM(B4:B15) -> 14435 | L15: =SUM(C4:C15) -> 4768 | M15: =SUM(D4:D15) -> 110 | N15: =SUM(E4:E15) -> 1676 | O15: =SUM(F4:F15) -> 151 | P15: =SUM(G4:G15) -> 390 | R15: 2020-01-01 | S15: 4668 | T15: 2270 | U15: 40 | V15: 806 | W15: 62 | X15: 515 | Y15: 4338.770155
A16: 2020-04-01 | B16: 1022 | C16: 834 | D16: 16 | E16: 282 | F16: 22 | G16: 53 | H16: 4258.478301 | J16: =vPLDashboard[[#This Row],[Period]] -> 2020-04-01 | K16: =SUM(B5:B16) -> 15028 | L16: =SUM(C5:C16) -> 5602 | M16: 126 | N16: 1958 | O16: 173 | P16: 442 | R16: 2020-02-01 | S16: 4534 | T16: 1714 | U16: 41 | V16: 689 | W16: 84 | X16: 491 | Y16: 4327.573197
A17: 2020-05-01 | B17: 887 | C17: 629 | D17: 9 | E17: 230 | F17: 25 | G17: 61 | H17: 4877.445409 | J17: =vPLDashboard[[#This Row],[Period]] -> 2020-05-01 | K17: =SUM(B6:B17) -> 15433 | L17: 6231 | M17: 135 | N17: 2188 | O17: 198 | P17: 499 | R17: 2020-03-01 | S17: 4310 | T17: 2417 | U17: 70 | V17: 878 | W17: 74 | X17: 497 | Y17: 4435.140422
A18: 2020-06-01 | B18: 1078 | C18: 514 | D18: 17 | E18: 187 | F18: 20 | G18: 57 | H18: 4733.284035 | J18: =vPLDashboard[[#This Row],[Period]] -> 2020-06-01 | K18: 16042 | L18: 6745 | M18: =SUM(D7:D18) -> 152 | N18: =SUM(E7:E18) -> 2375 | O18: =SUM(F7:F18) -> 218 | P18: =SUM(G7:G18) -> 554 | R18: 2020-04-01 | S18: 2857 | T18: 2362 | U18: 49 | V18: 754 | W18: 67 | X18: 463 | Y18: 4444.004341
A19: 2020-07-01 | B19: 1328 | C19: 518 | D19: 15 | E19: 198 | F19: 16 | G19: 56 | H19: 4929.139642 | J19: =vPLDashboard[[#This Row],[Period]] -> 2020-07-01 | K19: 16923 | L19: =SUM(C8:C19) -> 7263 | M19: 167 | N19: 2573 | O19: 234 | P19: 608 | R19: 2020-05-01 | S19: 2284 | T19: 1801 | U19: 32 | V19: 608 | W19: 72 | X19: 392 | Y19: 4446.421887
A20: 2020-08-01 | B20: 1176 | C20: 468 | D20: 10 | E20: 180 | F20: 22 | G20: 37 | H20: 5154.588378 | J20: =vPLDashboard[[#This Row],[Period]] -> 2020-08-01 | K20: 16872 | L20: 7731 | M20: 177 | N20: 2753 | O20: 256 | P20: 643 | R20: 2020-06-01 | S20: 2713 | T20: 1512 | U20: 42 | V20: 513 | W20: 56 | X20: 361 | Y20: 4457.881495
A21: 2020-09-01 | B21: 1537 | C21: 590 | D21: 14 | E21: 208 | F21: 24 | G21: 41 | H21: 5543.31 | J21: =vPLDashboard[[#This Row],[Period]] -> 2020-09-01 | K21: 16937 | L21: 8306 | M21: 191 | N21: 2955 | O21: 278 | P21: 679 | R21: 2020-07-01 | S21: 3147 | T21: 1378 | U21: 37 | V21: 488 | W21: 47 | X21: 310 | Y21: 4767.555129
A22: 2020-10-01 | B22: 1564 | C22: 577 | D22: 15 | E22: 248 | F22: 18 | G22: 53 | H22: 5127.726792 | J22: =vPLDashboard[[#This Row],[Period]] -> 2020-10-01 | K22: 16694 | L22: 8050 | M22: 185 | N22: 2934 | O22: 265 | P22: 662 | R22: 2020-08-01 | S22: 2544 | T22: 1217 | U22: 30 | V22: 422 | W22: 35 | X22: 228 | Y22: 4843.45057
A23: 2020-11-01 | B23: 1444 | C23: 685 | D23: 18 | E23: 250 | F23: 18 | G23: 74 | H23: 4544.284324 | J23: =vPLDashboard[[#This Row],[Period]] -> 2020-11-01 | K23: 16401 | L23: 7951 | M23: 187 | N23: 2928 | O23: 257 | P23: 687 | R23: 2020-09-01 | S23: 3548 | T23: 1629 | U23: 35 | V23: 545 | W23: 51 | X23: 325 | Y23: 4378.508
A24: 2020-12-01 | B24: 1078 | C24: 593 | D24: 8 | E24: 259 | F24: 26 | G24: 71 | H24: 5332.60183 | J24: =vPLDashboard[[#This Row],[Period]] -> 2020-12-01 | K24: 16235 | L24: 7754 | M24: 182 | N24: 2929 | O24: 264 | P24: 702 | R24: 2020-10-01 | S24: 3817 | T24: 1749 | U24: 41 | V24: 623 | W24: 49 | X24: 328 | Y24: 4633.476463
A25: 2021-01-01 | B25: 1388 | C25: 565 | D25: 6 | E25: 224 | F25: 25 | G25: 70 | H25: 5071.024428 | J25: =vPLDashboard[[#This Row],[Period]] -> 2021-01-01 | K25: 15824 | L25: 7478 | M25: 171 | N25: 2866 | O25: 273 | P25: 711 | R25: 2020-11-01 | S25: 3172 | T25: 1907 | U25: 48 | V25: 624 | W25: 43 | X25: 343 | Y25: 4743.351166
A26: 2021-02-01 | B26: 1284 | C26: 463 | D26: 9 | E26: 171 | F26: 19 | G26: 59 | H26: 6086.065254 | J26: =vPLDashboard[[#This Row],[Period]] -> 2021-02-01 | K26: 15384 | L26: 7323 | M26: 164 | N26: 2785 | O26: 264 | P26: 704 | R26: 2020-12-01 | S26: 2510 | T26: 1794 | U26: 29 | V26: 576 | W26: 55 | X26: 306 | Y26: 4367.751503
A27: 2021-03-01 | B27: 1558 | C27: 616 | D27: 19 | E27: 254 | F27: 24 | G27: 69 | H27: 4898.79855 | J27: =vPLDashboard[[#This Row],[Period]] -> 2021-03-01 | K27: 15344 | L27: 7052 | M27: 156 | N27: 2691 | O27: 259 | P27: 701 | R27: 2021-01-01 | S27: 2953 | T27: 1521 | U27: 21 | V27: 529 | W27: 43 | X27: 356 | Y27: 4548.306966
A28: 2021-04-01 | B28: 1369 | C28: 560 | D28: 9 | E28: 229 | F28: 33 | G28: 69 | H28: 5772.45826 | J28: =vPLDashboard[[#This Row],[Period]] -> 2021-04-01 | K28: 15691 | L28: 6778 | M28: 149 | N28: 2638 | O28: 270 | P28: 717 | R28: 2021-02-01 | S28: 1671 | T28: 1046 | U28: 23 | V28: 324 | W28: 34 | X28: 303 | Y28: 4595.191023
A29: 2021-05-01 | B29: 1337 | C29: 525 | D29: 14 | E29: 218 | F29: 29 | G29: 58 | H29: 5382.205344 | J29: =vPLDashboard[[#This Row],[Period]] -> 2021-05-01 | K29: 16141 | L29: 6674 | M29: 154 | N29: 2626 | O29: 274 | P29: 714 | R29: 2021-03-01 | S29: 3276 | T29: 1716 | U29: 44 | V29: 588 | W29: 50 | X29: 408 | Y29: 4982.46397
A30: 2021-06-01 | B30: 1621 | C30: 602 | D30: 9 | E30: 271 | F30: 32 | G30: 57 | H30: 6016.210701 | J30: =vPLDashboard[[#This Row],[Period]] -> 2021-06-01 | K30: 16684 | L30: 6762 | M30: 146 | N30: 2710 | O30: 286 | P30: 714 | R30: 2021-04-01 | S30: 2692 | T30: 1432 | U30: 32 | V30: 528 | W30: 59 | X30: 338 | Y30: 4664.866923
A31: 2021-07-01 | B31: 1983 | C31: 573 | D31: 9 | E31: 264 | F31: 32 | G31: 64 | H31: 5514.254062 | J31: =vPLDashboard[[#This Row],[Period]] -> 2021-07-01 | K31: 17339 | L31: 6817 | M31: 140 | N31: 2776 | O31: 302 | P31: 722 | R31: 2021-05-01 | S31: 2707 | T31: 1219 | U31: 31 | V31: 474 | W31: 60 | X31: 297 | Y31: 5076.254545
A32: 2021-08-01 | B32: 3043 | C32: 673 | D32: 14 | E32: 272 | F32: 26 | G32: 71 | H32: 5754.215774 | J32: =vPLDashboard[[#This Row],[Period]] -> 2021-08-01 | K32: 19206 | L32: 7022 | M32: 144 | N32: 2868 | O32: 306 | P32: 756 | R32: 2021-06-01 | S32: 3066 | T32: 1555 | U32: 43 | V32: 547 | W32: 61 | X32: 338 | Y32: 4990.970355
A33: 2021-09-01 | B33: 3593 | C33: 1175 | D33: 27 | E33: 402 | F33: 33 | G33: 178 | H33: 5592.961123 | J33: =vPLDashboard[[#This Row],[Period]] -> 2021-09-01 | K33: 21262 | L33: 7607 | M33: 157 | N33: 3062 | O33: 315 | P33: 893 | R33: 2021-07-01 | S33: 3155 | T33: 1538 | U33: 32 | V33: 552 | W33: 56 | X33: 313 | Y33: 4951.649361
A34: 2021-10-01 | B34: 3512 | C34: 1914 | D34: 34 | E34: 638 | F34: 61 | G34: 314 | H34: 5406.053343 | J34: =vPLDashboard[[#This Row],[Period]] -> 2021-10-01 | K34: 23210 | L34: 8944 | M34: 176 | N34: 3452 | O34: 358 | P34: 1154 | R34: 2021-08-01 | S34: 3244 | T34: 1660 | U34: 29 | V34: 527 | W34: 45 | X34: 294 | Y34: 5183.901598
A35: 2021-11-01 | B35: 3495 | C35: 2063 | D35: 36 | E35: 658 | F35: 40 | G35: 324 | H35: 5606.865339 | J35: =vPLDashboard[[#This Row],[Period]] -> 2021-11-01 | K35: 25261 | L35: 10322 | M35: 194 | N35: 3860 | O35: 380 | P35: 1404 | R35: 2021-09-01 | S35: 3530 | T35: 1600 | U35: 35 | V35: 544 | W35: 43 | X35: 293 | Y35: 4979.215017
A36: 2021-12-01 | B36: 2474 | C36: 1943 | D36: 29 | E36: 562 | F36: 36 | G36: 303 | H36: 5562.353531 | J36: =vPLDashboard[[#This Row],[Period]] -> 2021-12-01 | K36: 26657 | L36: 11672 | M36: 215 | N36: 4163 | O36: 390 | P36: 1636 | R36: 2021-10-01 | S36: 3347 | T36: 1583 | U36: 34 | V36: 600 | W36: 61 | X36: 315 | Y36: 4870.601936
A37: 2022-01-01 | B37: 3232 | C37: 1792 | D37: 22 | E37: 604 | F37: 49 | G37: 331 | H37: 5274.515226 | J37: =vPLDashboard[[#This Row],[Period]] -> 2022-01-01 | K37: 28501 | L37: 12899 | M37: 231 | N37: 4543 | O37: 414 | P37: 1897 | R37: 2021-11-01 | S37: 3381 | T37: 1680 | U37: 36 | V37: 618 | W37: 40 | X37: 322 | Y37: 4918.639378
A38: 2022-02-01 | B38: 3183 | C38: 1363 | D38: 34 | E38: 476 | F38: 48 | G38: 310 | H38: 5462.393322 | J38: =vPLDashboard[[#This Row],[Period]] -> 2022-02-01 | K38: 30400 | L38: 13799 | M38: 256 | N38: 4848 | O38: 443 | P38: 2148 | R38: 2021-12-01 | S38: 2388 | T38: 1611 | U38: 29 | V38: 545 | W38: 36 | X38: 305 | Y38: 5012.39895
A39: 2022-03-01 | B39: 3464 | C39: 1974 | D39: 54 | E39: 660 | F39: 51 | G39: 296 | H39: 4932.084358 | J39: =vPLDashboard[[#This Row],[Period]] -> 2022-03-01 | K39: 32306 | L39: 15157 | M39: 291 | N39: 5254 | O39: 470 | P39: 2375 | R39: 2022-01-01 | S39: 3017 | T39: 1515 | U39: 22 | V39: 576 | W39: 49 | X39: 347 | Y39: 4723.256253
A40: 2022-04-01 | B40: 2780 | C40: 1735 | D40: 43 | E40: 561 | F40: 58 | G40: 295 | H40: 5319.998169 | J40: =vPLDashboard[[#This Row],[Period]] -> 2022-04-01 | K40: 33717 | L40: 16332 | M40: 325 | N40: 5586 | O40: 495 | P40: 2601 | R40: 2022-02-01 | S40: 3075 | T40: 1158 | U40: 34 | V40: 460 | W40: 48 | X40: 318 | Y40: 4899.518647
A41: 2022-05-01 | B41: 3171 | C41: 1863 | D41: 47 | E41: 630 | F41: 47 | G41: 366 | H41: 5326.301666 | J41: =vPLDashboard[[#This Row],[Period]] -> 2022-05-01 | K41: 35551 | L41: 17670 | M41: 358 | N41: 5998 | O41: 513 | P41: 2909 | R41: 2022-03-01 | S41: 3300 | T41: 1795 | U41: 58 | V41: 684 | W41: 55 | X41: 345 | Y41: 4537.994724
A42: 2022-06-01 | B42: 3009 | C42: 1716 | D42: 53 | E42: 541 | F42: 50 | G42: 333 | H42: 5471.563153 | J42: =vPLDashboard[[#This Row],[Period]] -> 2022-06-01 | K42: 36939 | L42: 18784 | M42: 402 | N42: 6268 | O42: 531 | P42: 3185 | R42: 2022-04-01 | S42: 2624 | T42: 1425 | U42: 43 | V42: 533 | W42: 58 | X42: 293 | Y42: 4829.560853
A43: 2022-07-01 | B43: 3209 | C43: 1769 | D43: 42 | E43: 543 | F43: 53 | G43: 271 | H43: 5507.338339 | J43: =vPLDashboard[[#This Row],[Period]] -> 2022-07-01 | K43: 38165 | L43: 19980 | M43: 435 | N43: 6547 | O43: 552 | P43: 3392 | R43: 2022-05-01 | S43: 3003 | T43: 1533 | U43: 47 | V43: 591 | W43: 47 | X43: 366 | Y43: 4777.56153
A44: 2022-08-01 | B44: 3600 | C44: 1936 | D44: 51 | E44: 576 | F44: 45 | G44: 254 | H44: 6116.399527 | J44: =vPLDashboard[[#This Row],[Period]] -> 2022-08-01 | K44: 38722 | L44: 21243 | M44: 472 | N44: 6851 | O44: 571 | P44: 3575 | R44: 2022-06-01 | S44: 2851 | T44: 1480 | U44: 53 | V44: 511 | W44: 50 | X44: 333 | Y44: 4807.426486
A45: 2022-09-01 | B45: 3369 | C45: 1906 | D45: 29 | E45: 618 | F45: 49 | G45: 228 | H45: 5522.092017 | J45: =vPLDashboard[[#This Row],[Period]] -> 2022-09-01 | K45: 38498 | L45: 21974 | M45: 474 | N45: 7067 | O45: 587 | P45: 3625 | R45: 2022-07-01 | S45: 2981 | T45: 1525 | U45: 42 | V45: 526 | W45: 54 | X45: 283 | Y45: 4909.139681
A46: 2022-10-01 | B46: 3332 | C46: 1970 | D46: 35 | E46: 637 | F46: 57 | G46: 273 | H46: 5643.042967 | J46: =vPLDashboard[[#This Row],[Period]] -> 2022-10-01 | K46: 38318 | L46: 22030 | M46: 475 | N46: 7066 | O46: 583 | P46: 3584 | R46: 2022-08-01 | S46: 3364 | T46: 1640 | U46: 51 | V46: 563 | W46: 45 | X46: 262 | Y46: 5540.725419
A47: 2022-11-01 | B47: 3324 | C47: 2008 | D47: 40 | E47: 598 | F47: 67 | G47: 281 | H47: 5226.413629 | J47: =vPLDashboard[[#This Row],[Period]] -> 2022-11-01 | K47: 38147 | L47: 21975 | M47: 479 | N47: 7006 | O47: 610 | P47: 3541 | R47: 2022-09-01 | S47: 3260 | T47: 1644 | U47: 29 | V47: 614 | W47: 49 | X47: 246 | Y47: 4830.333739
A48: 2022-12-01 | B48: 2295 | C48: 1921 | D48: 37 | E48: 534 | F48: 45 | G48: 201 | H48: 5676.629104 | J48: =vPLDashboard[[#This Row],[Period]] -> 2022-12-01 | K48: 37968 | L48: 21953 | M48: 487 | N48: 6978 | O48: 619 | P48: 3439 | R48: 2022-10-01 | S48: 3332 | T48: 1970 | U48: 35 | V48: 637 | W48: 57 | X48: 273 | Y48: 5643.042967
A49: 2023-01-01 | B49: 3373 | C49: 1788 | D49: 28 | E49: 576 | F49: 55 | G49: 267 | H49: 6191.644981 | J49: =vPLDashboard[[#This Row],[Period]] -> 2023-01-01 | K49: 38109 | L49: 21949 | M49: 493 | N49: 6950 | O49: 625 | P49: 3375 | R49: 2022-11-01 | S49: 3322 | T49: 2008 | U49: 40 | V49: 598 | W49: 67 | X49: 281 | Y49: 5226.413629
A50: 2023-02-01 | B50: 3297 | C50: 1300 | D50: 37 | E50: 493 | F50: 41 | G50: 274 | H50: 5775.487737 | J50: =vPLDashboard[[#This Row],[Period]] -> 2023-02-01 | K50: 38223 | L50: 21886 | M50: 496 | N50: 6967 | O50: 618 | P50: 3339 | R50: 2022-12-01 | S50: 2295 | T50: 1921 | U50: 37 | V50: 534 | W50: 45 | X50: 201 | Y50: 5676.629104
A51: 2023-03-01 | B51: 3567 | C51: 2193 | D51: 35 | E51: 675 | F51: 60 | G51: 331 | H51: 5439.928519 | J51: =vPLDashboard[[#This Row],[Period]] -> 2023-03-01 | K51: 38326 | L51: 22105 | M51: 477 | N51: 6982 | O51: 627 | P51: 3374 | R51: 2023-01-01 | S51: 3372 | T51: 1788 | U51: 28 | V51: 576 | W51: 55 | X51: 267 | Y51: 6191.644981
A52: 2023-04-01 | B52: 2733 | C52: 1675 | D52: 27 | E52: 533 | F52: 50 | G52: 268 | H52: 5937.084776 | J52: =vPLDashboard[[#This Row],[Period]] -> 2023-04-01 | K52: 38279 | L52: 22045 | M52: 461 | N52: 6954 | O52: 619 | P52: 3347 | R52: 2023-02-01 | S52: 3297 | T52: 1300 | U52: 37 | V52: 493 | W52: 41 | X52: 274 | Y52: 5775.487737
A53: 2023-05-01 | B53: 3172 | C53: 1807 | D53: 36 | E53: 547 | F53: 53 | G53: 272 | H53: 5417.123419 | J53: =vPLDashboard[[#This Row],[Period]] -> 2023-05-01 | K53: 38280 | L53: 21989 | M53: 450 | N53: 6871 | O53: 625 | P53: 3253 | R53: 2023-03-01 | S53: 3568 | T53: 2193 | U53: 35 | V53: 675 | W53: 60 | X53: 331 | Y53: 5439.928519
A54: 2023-06-01 | B54: 3447 | C54: 1970 | D54: 44 | E54: 620 | F54: 54 | G54: 293 | H54: 6128.198771 | J54: =vPLDashboard[[#This Row],[Period]] -> 2023-06-01 | K54: 38718 | L54: 22243 | M54: 441 | N54: 6950 | O54: 629 | P54: 3213 | R54: 2023-04-01 | S54: 2733 | T54: 1675 | U54: 27 | V54: 533 | W54: 50 | X54: 268 | Y54: 5937.084776
A55: 2023-07-01 | B55: 3352 | C55: 1960 | D55: 34 | E55: 642 | F55: 62 | G55: 265 | H55: 5479.147584 | J55: =vPLDashboard[[#This Row],[Period]] -> 2023-07-01 | K55: 38861 | L55: 22434 | M55: 433 | N55: 7049 | O55: 638 | P55: 3207 | R55: 2023-05-01 | S55: 3173 | T55: 1807 | U55: 36 | V55: 547 | W55: 53 | X55: 272 | Y55: 5417.123419
A56: 2023-08-01 | B56: 3398 | C56: 1929 | D56: 38 | E56: 656 | F56: 48 | G56: 281 | H56: 5596.66733 | J56: =vPLDashboard[[#This Row],[Period]] -> 2023-08-01 | K56: 38659 | L56: 22427 | M56: 420 | N56: 7129 | O56: 641 | P56: 3234 | R56: 2023-06-01 | S56: 3448 | T56: 1970 | U56: 44 | V56: 620 | W56: 54 | X56: 293 | Y56: 6128.198771
A57: 2023-09-01 | B57: 3142 | C57: 1973 | D57: 42 | E57: 614 | F57: 54 | G57: 287 | H57: 6067.685052 | J57: =vPLDashboard[[#This Row],[Period]] -> 2023-09-01 | K57: 38432 | L57: 22494 | M57: 433 | N57: 7125 | O57: 646 | P57: 3293 | R57: 2023-07-01 | S57: 3352 | T57: 1960 | U57: 34 | V57: 642 | W57: 62 | X57: 265 | Y57: 5479.147584
A58: 2023-10-01 | B58: 3322 | C58: 1969 | D58: 42 | E58: 601 | F58: 43 | G58: 317 | H58: 5802.980189 | J58: =vPLDashboard[[#This Row],[Period]] -> 2023-10-01 | K58: 38422 | L58: 22493 | M58: 440 | N58: 7089 | O58: 632 | P58: 3337 | R58: 2023-08-01 | S58: 3398 | T58: 1929 | U58: 38 | V58: 656 | W58: 48 | X58: 281 | Y58: 5596.66733
A59: 2023-11-01 | B59: 3235 | C59: 1998 | D59: 41 | E59: 591 | F59: 56 | G59: 329 | H59: 5550.885744 | J59: =vPLDashboard[[#This Row],[Period]] -> 2023-11-01 | K59: 38333 | L59: 22483 | M59: 441 | N59: 7082 | O59: 621 | P59: 3385 | R59: 2023-09-01 | S59: 3142 | T59: 1973 | U59: 42 | V59: 614 | W59: 54 | X59: 287 | Y59: 6067.685052
A60: 2023-12-01 | B60: 2259 | C60: 1599 | D60: 36 | E60: 499 | F60: 31 | G60: 256 | H60: 6038.148867 | J60: =vPLDashboard[[#This Row],[Period]] -> 2023-12-01 | K60: 38297 | L60: 22161 | M60: 440 | N60: 7047 | O60: 607 | P60: 3440 | R60: 2023-10-01 | S60: 3322 | T60: 1969 | U60: 42 | V60: 601 | W60: 43 | X60: 317 | Y60: 5802.980189
A61: 2024-01-01 | B61: 3163 | C61: 1885 | D61: 43 | E61: 590 | F61: 49 | G61: 299 | H61: 5719.211739 | J61: =vPLDashboard[[#This Row],[Period]] -> 2024-01-01 | K61: 38087 | L61: 22258 | M61: 455 | N61: 7061 | O61: 601 | P61: 3472 | R61: 2023-11-01 | S61: 3234 | T61: 1998 | U61: 41 | V61: 591 | W61: 56 | X61: 329 | Y61: 5550.885744
A62: 2024-02-01 | B62: 3056 | C62: 1524 | D62: 33 | E62: 507 | F62: 48 | G62: 320 | H62: 5574.140375 | J62: =vPLDashboard[[#This Row],[Period]] -> 2024-02-01 | K62: 37846 | L62: 22482 | M62: 451 | N62: 7075 | O62: 608 | P62: 3518 | R62: 2023-12-01 | S62: 2259 | T62: 1599 | U62: 36 | V62: 499 | W62: 31 | X62: 256 | Y62: 6038.148867
A63: 2024-03-01 | B63: 2939 | C63: 1716 | D63: 40 | E63: 528 | F63: 43 | G63: 265 | H63: 6120.210377 | J63: =vPLDashboard[[#This Row],[Period]] -> 2024-03-01 | K63: 37218 | L63: 22005 | M63: 456 | N63: 6928 | O63: 591 | P63: 3452 | R63: 2024-01-01 | S63: 3163 | T63: 1885 | U63: 43 | V63: 590 | W63: 49 | X63: 299 | Y63: 5719.211739
A64: 2024-04-01 | B64: 2983 | C64: 1754 | D64: 36 | E64: 499 | F64: 50 | G64: 278 | H64: 5887.266546 | J64: =vPLDashboard[[#This Row],[Period]] -> 2024-04-01 | K64: 37468 | L64: 22084 | M64: 465 | N64: 6894 | O64: 591 | P64: 3462 | R64: 2024-02-01 | S64: 3056 | T64: 1524 | U64: 33 | V64: 507 | W64: 48 | X64: 320 | Y64: 5574.140375
A65: 2024-05-01 | B65: 2690 | C65: 1801 | D65: 32 | E65: 474 | F65: 52 | G65: 222 | H65: 6260.844549 | J65: =vPLDashboard[[#This Row],[Period]] -> 2024-05-01 | K65: 36986 | L65: 22078 | M65: 461 | N65: 6821 | O65: 590 | P65: 3412 | R65: 2024-03-01 | S65: 2940 | T65: 1716 | U65: 40 | V65: 528 | W65: 43 | X65: 265 | Y65: 6120.210377
A66: 2024-06-01 | B66: 2647 | C66: 1642 | D66: 36 | E66: 513 | F66: 35 | G66: 221 | H66: 6529.575791 | J66: =vPLDashboard[[#This Row],[Period]] -> 2024-06-01 | K66: =SUM(B55:B66) -> 36186 | L66: 21750 | M66: 453 | N66: 6714 | O66: 571 | P66: 3340 | R66: 2024-04-01 | S66: 2981 | T66: 1747 | U66: 36 | V66: 497 | W66: 50 | X66: 278 | Y66: 5887.266546
A67: 2024-07-01 | B67: 3025 | C67: 1814 | D67: 47 | E67: 601 | F67: 45 | G67: 276 | H67: 6772.555543 | J67: =vPLDashboard[[#This Row],[Period]] -> 2024-07-01 | K67: =SUM(B56:B67) -> 35859 | L67: =SUM(C56:C67) -> 21604 | M67: =SUM(D56:D67) -> 466 | N67: =SUM(E56:E67) -> 6673 | O67: =SUM(F56:F67) -> 554 | P67: =SUM(G56:G67) -> 3351 | R67: 2024-05-01 | S67: 2687 | T67: 1512 | U67: 32 | V67: 433 | W67: 52 | X67: 227 | Y67: 6145.910837
A68: 2024-08-01 | B68: 2816 | C68: 1599 | D68: 43 | E68: 497 | F68: 42 | G68: 214 | H68: 6246.916355 | J68: =vPLDashboard[[#This Row],[Period]] -> 2024-08-01 | K68: =SUM(B57:B68) -> 35277 | L68: 21274 | M68: 471 | N68: 6514 | O68: 548 | P68: 3284 | R68: 2024-06-01 | S68: 2644 | T68: 1353 | U68: 36 | V68: 504 | W68: 35 | X68: 225 | Y68: 6442.383333
A69: 2024-09-01 | B69: 2995 | C69: 1593 | D69: 36 | E69: 525 | F69: 37 | G69: 224 | H69: 6373.169285 | J69: =vPLDashboard[[#This Row],[Period]] -> 2024-09-01 | K69: =SUM(B58:B69) -> 35130 | L69: =SUM(C58:C69) -> 20894 | M69: =SUM(D58:D69) -> 465 | N69: =SUM(E58:E69) -> 6425 | O69: =SUM(F58:F69) -> 531 | P69: =SUM(G58:G69) -> 3221 | R69: 2024-07-01 | S69: 3016 | T69: 1512 | U69: 47 | V69: 598 | W69: 45 | X69: 285 | Y69: 6727.458315
A70: 2024-10-01 | B70: 3152 | C70: 1649 | D70: 39 | E70: 604 | F70: 47 | G70: 262 | H70: 6704.625992 | J70: =vPLDashboard[[#This Row],[Period]] -> 2024-10-01 | K70: 34960 | L70: 20574 | M70: 462 | N70: 6428 | O70: 535 | P70: 3166 | R70: 2024-08-01 | S70: 2658 | T70: 1260 | U70: 37 | V70: 479 | W70: 38 | X70: 205 | Y70: 6325.69839
A71: 2024-11-01 | B71: 2725 | C71: 1547 | D71: 21 | E71: 548 | F71: 52 | G71: 271 | H71: 6611.70321 | J71: =vPLDashboard[[#This Row],[Period]] -> 2024-11-01 | K71: =SUM(B60:B71) -> 34450 | L71: =SUM(C60:C71) -> 20123 | M71: =SUM(D60:D71) -> 442 | N71: =SUM(E60:E71) -> 6385 | O71: =SUM(F60:F71) -> 531 | P71: =SUM(G60:G71) -> 3108 | R71: 2024-09-01 | S71: 2594 | T71: 1304 | U71: 36 | V71: 485 | W71: 35 | X71: 225 | Y71: 6390.860222
A72: 2024-12-01 | B72: 1832 | C72: 1286 | D72: 31 | E72: 429 | F72: 51 | G72: 208 | H72: 6586.102403 | J72: =vPLDashboard[[#This Row],[Period]] -> 2024-12-01 | K72: 34023 | L72: 19810 | M72: 437 | N72: 6315 | O72: 551 | P72: 3060 | R72: 2024-10-01 | S72: 2838 | T72: 1525 | U72: 39 | V72: 572 | W72: 45 | X72: 256 | Y72: 6742.001835
R73: 2024-11-01 | S73: 2574 | T73: 1519 | U73: 21 | V73: 548 | W73: 52 | X73: 272 | Y73: 6602.10136
R74: 2024-12-01 | S74: 1832 | T74: 1286 | U74: 31 | V74: 429 | W74: 51 | X74: 208 | Y74: 6586.102403

Sheet Year Calculations (hidden)
A1: Period | B1: CNFs sent | C1: CNFs left at stage 1 | D1: Stage 2 exit | E1: Exit process | F1: Court pack | G1: Settled claims
A2: 2013-14 | B2: =SUM('Backing Sheet Data'!#REF!) ->  | C2: =SUM('Backing Sheet Data'!#REF!) ->  | D2: =SUM('Backing Sheet Data'!#REF!) ->  | E2: =SUM('Backing Sheet Data'!#REF!) ->  | F2: =SUM('Backing Sheet Data'!#REF!) ->  | G2: =SUM('Backing Sheet Data'!#REF!) -> 
A3: 2014-15 | B3: =SUM('Backing Sheet Data'!#REF!) ->  | C3: =SUM('Backing Sheet Data'!#REF!) ->  | D3: =SUM('Backing Sheet Data'!#REF!) ->  | E3: =SUM('Backing Sheet Data'!#REF!) ->  | F3: =SUM('Backing Sheet Data'!#REF!) ->  | G3: =SUM('Backing Sheet Data'!#REF!) -> 
A4: 2015-16 | B4: =SUM('Backing Sheet Data'!#REF!) ->  | C4: =SUM('Backing Sheet Data'!#REF!) ->  | D4: =SUM('Backing Sheet Data'!#REF!) ->  | E4: =SUM('Backing Sheet Data'!#REF!) ->  | F4: =SUM('Backing Sheet Data'!#REF!) ->  | G4: =SUM('Backing Sheet Data'!#REF!) -> 
A5: 2016-17 | B5: =SUM('Backing Sheet Data'!#REF!) ->  | C5: =SUM('Backing Sheet Data'!#REF!) ->  | D5: =SUM('Backing Sheet Data'!#REF!) ->  | E5: =SUM('Backing Sheet Data'!#REF!) ->  | F5: =SUM('Backing Sheet Data'!#REF!) ->  | G5: =SUM('Backing Sheet Data'!#REF!) -> 
A6: 2017-18 | B6: =SUM('Backing Sheet Data'!#REF!) ->  | C6: =SUM('Backing Sheet Data'!#REF!) ->  | D6: =SUM('Backing Sheet Data'!#REF!) ->  | E6: =SUM('Backing Sheet Data'!#REF!) ->  | F6: =SUM('Backing Sheet Data'!#REF!) ->  | G6: =SUM('Backing Sheet Data'!#REF!) -> 
A7: 2018-19 | B7: =SUM('Backing Sheet Data'!#REF!) ->  | C7: =SUM('Backing Sheet Data'!#REF!) ->  | D7: =SUM('Backing Sheet Data'!#REF!) ->  | E7: =SUM('Backing Sheet Data'!#REF!) ->  | F7: =SUM('Backing Sheet Data'!#REF!) ->  | G7: =SUM('Backing Sheet Data'!#REF!) -> 
A8: 2019-20 | B8: =SUM('Backing Sheet Data'!#REF!) ->  | C8: =SUM('Backing Sheet Data'!#REF!) ->  | D8: =SUM('Backing Sheet Data'!#REF!) ->  | E8: =SUM('Backing Sheet Data'!#REF!) ->  | F8: =SUM('Backing Sheet Data'!#REF!) ->  | G8: =SUM('Backing Sheet Data'!#REF!) -> 
A9: 2020-21 | B9: =SUM('Backing Sheet Data'!#REF!) ->  | C9: =SUM('Backing Sheet Data'!#REF!) ->  | D9: =SUM('Backing Sheet Data'!#REF!) ->  | E9: =SUM('Backing Sheet Data'!#REF!) ->  | F9: =SUM('Backing Sheet Data'!#REF!) ->  | G9: =SUM('Backing Sheet Data'!#REF!) -> 
